bitfinex-derivatives/quotes_ETHF0:USTF0_20250520
["timestamp","ask_amount","ask_price","bid_price","bid_amount"]
[1747706940433,3.2078,2552.3,2552.2,2.09195]
[1747706940639,1.2602,2552.6,2552.3,0.78341]
[1747706940932,1.2602,2552.6,2552.4,1.2864]
[1747706941137,2.04355,2552.6,2552.4,1.2864]
[1747706942041,1.2602,2552.6,2552.4,1.2864]
[1747706942233,1.2602,2552.6,2552.4,2.06979]
[1747706942736,3.2078,2552.7,2552.5,0.78336]
[1747706942936,3.9911,2552.7,2552.6,1.3374]
[1747706943129,0.00744187,2552.5,2552.4,0.78339]
[1747706944038,0.00744187,2552.5,2552.4,2.12079]
[1747706944237,1.87e-06,2552.5,2552.4,7.12079]
[1747706944436,3.2078,2553.1,2552.4,9.5484]
[1747706944741,0.78333,2552.6,2552.4,9.5474]
[1747706944924,0.78335,2552.6,2552.4,9.5474]
[1747706945123,0.7833,2552.7,2552.4,1.3374]
[1747706945327,3.2078,2552.7,2552.4,1.3374]
[1747706945528,0.78336,2552.5,2552.4,1.3374]
[1747706945730,1.3161,2552.6,2552.4,1.3374]
[1747706945934,4.486,2553.0,2552.9,0.78324]
[1747706945935,0.6451,2553.0,2552.9,0.78324]
[1747706946235,0.6331,2553.4,2552.7,0.00587936]
[1747706946535,1.3898,2553.3,2552.7,1.27427936]
[1747706946736,0.78323,2553.0,2552.7,2.05756936]
[1747706946939,0.78324,2552.9,2552.8,1.2684]
[1747706947141,2.17304,2552.9,2552.7,0.00587936]
[1747706947438,0.78327,2552.8,2552.7,0.00587936]
[1747706947629,2.17307,2552.8,2552.7,0.00587936]
[1747706948634,1.3898,2552.8,2552.7,0.00587936]
[1747706948846,2.17307,2552.8,2552.7,0.00587936]
[1747706949343,3.2078,2553.0,2552.7,0.00587936]
[1747706949738,2.09076,2552.9,2552.7,0.00587936]
[1747706950040,0.78327,2552.8,2552.7,0.00587936]
[1747706950235,2.09077,2552.8,2552.7,0.00587936]
[1747706955343,0.78327,2552.8,2552.7,0.00587936]
[1747706955643,2.12187,2552.8,2552.7,0.00587936]
[1747706956744,5.32967,2552.8,2552.7,0.00587936]
[1747706957139,2.12187,2552.8,2552.7,0.00587936]
[1747706958845,1.3386,2552.8,2552.7,0.00587936]
[1747706959236,3.2078,2553.1,2552.7,0.00587936]
[1747706959441,3.2078,2553.1,2552.8,0.78325]
[1747706959739,1.2894,2553.0,2552.9,0.78323]
[1747706960846,2.06883,2553.3,2552.9,0.78323]
[1747706961039,1.2857,2553.1,2553.0,1.3025]
[1747706961241,1.2857,2553.1,2553.0,0.78321]
[1747706961644,4.6872,2553.4,2553.1,0.78317]
[1747706961845,1.2857,2553.3,2553.0,0.78319]
[1747706962046,2.06882,2553.3,2553.0,0.78319]
[1747706962247,1.2857,2553.3,2552.9,1.3025]
[1747706962750,1.2857,2553.3,2552.7,10.55265936]
[1747706962949,0.78319,2553.1,2552.7,9.76937936]
[1747706963248,0.78326,2552.9,2552.7,9.76937936]
[1747706963448,1.2857,2552.8,2552.7,9.76937936]
[1747706963644,1.2857,2552.8,2552.7,0.00587936]
[1747706963848,1.2857,2552.8,2552.7,0.78917936]
[1747706964047,1.2857,2552.8,2552.7,2.11227936]
[1747706965142,0.78316,2553.2,2552.9,0.78323]
[1747706965347,1.368,2553.0,2552.9,0.78323]
[1747706965653,1.368,2553.0,2552.8,0.78325]
[1747706965954,1.368,2553.0,2552.7,1.32897936]
[1747706966153,1.368,2553.0,2552.9,0.78324]
[1747706966347,1.368,2553.0,2552.8,0.78326]
[1747706966955,1.368,2553.0,2552.9,0.78324]
[1747706967754,1.368,2553.0,2552.8,0.78326]
[1747706968051,1.368,2553.0,2552.8,2.11426]
[1747706968255,0.78327,2552.8,2552.7,0.00587936]
[1747706968448,1.368,2553.0,2552.7,0.00587936]
[1747706968449,0.6347,2552.9,2552.7,0.00587936]
[1747706968649,1.3933,2552.8,2552.7,0.00587936]
[1747706968849,1.3933,2552.8,2552.7,1.33687936]
[1747706969051,0.78318,2553.1,2552.7,2.12017936]
[1747706969259,2.17651,2553.0,2552.7,1.33687936]
[1747706969459,3.2078,2553.4,2553.3,0.78312]
[1747706970051,1.3933,2553.5,2553.4,0.78309]
[1747706970347,1.3186,2553.8,2553.0,5.16581]
[1747706970553,1.2616,2553.7,2553.3,0.7831]
[1747706970747,1.2616,2553.7,2553.4,2.07348]
[1747706970958,1.2616,2553.7,2553.5,0.42099467]
[1747706971158,8.46,2554.0,2553.5,0.42099467]
[1747706971459,9.7216,2554.0,2553.6,2.07341]
[1747706971660,9.7216,2554.0,2553.7,1.2904]
[1747706971865,1.2616,2554.0,2553.7,1.2904]
[1747706972054,3.2078,2554.1,2553.9,0.78293]
[1747706972249,3.2078,2554.1,2554.0,0.7829]
[1747706972456,3.10601665,2554.3,2554.2,0.78284]
[1747706972859,3.10601665,2554.3,2554.0,1.96207936]
[1747706973161,1.2977,2554.2,2554.0,1.96207936]
[1747706973458,1.2977,2554.2,2554.0,0.00587936]
[1747706973662,3.2078,2555.0,2554.1,3.2078]
[1747706973855,1.2977,2554.8,2554.4,0.78278]
[1747706974056,1.2977,2554.8,2554.2,2.635]
[1747706974254,1.2977,2554.8,2554.5,0.78273]
[1747706974580,3.2078,2554.7,2554.1,3.2078]
[1747706974760,1.2977,2554.6,2554.0,0.00587936]
[1747706974954,1.2977,2554.6,2554.5,0.78275]
[1747706975266,3.2078,2554.9,2554.8,0.78266]
[1747706976060,3.2078,2554.9,2554.7,0.78267]
[1747706976261,3.2078,2554.9,2554.8,0.78266]
[1747706976463,4.6007,2554.9,2554.8,0.78266]
[1747706976672,3.88856665,2555.2,2554.7,3.2078]
[1747706976962,0.78263,2554.9,2554.5,2.6507]
[1747706977156,1.3929,2554.8,2554.6,0.78271]
[1747706977353,1.3929,2554.8,2554.4,3.2078]
[1747706977657,1.3929,2554.8,2554.2,1.3207]
[1747706977966,0.78257,2555.1,2554.6,0.7827]
[1747706978260,2.17548,2555.1,2554.7,2.10339]
[1747706978466,2.17548,2555.1,2554.8,1.3207]
[1747706979265,2.17548,2555.1,2554.8,2.10335]
[1747706979457,3.22695966,2555.3,2554.8,1.3207]
[1747706980062,3.22695966,2555.3,2555.1,0.78255]
[1747706980268,1.2697,2555.2,2555.1,0.78255]
[1747706980765,1.2697,2555.2,2555.0,2.16479]
[1747706980971,3.22695966,2555.3,2555.2,0.78254]
[1747706981568,3.22695966,2555.3,2555.0,1.3822]
[1747706982061,1.3793,2555.2,2555.0,1.3822]
[1747706982267,0.78262,2555.0,2554.5,4.5909]
[1747706982469,0.78259,2555.1,2554.8,0.78265]
[1747706982667,2.1619,2555.0,2554.9,1.3831]
[1747706982971,4.5871,2555.0,2554.5,2.07844]
[1747706983166,0.78269,2554.7,2554.6,1.3831]
[1747706983668,4.5871,2555.0,2554.6,1.3831]
[1747706984061,0.78269,2554.7,2554.6,1.3831]
[1747706984873,0.78276,2554.5,2554.2,3.99062]
[1747706985067,1.3687,2554.6,2554.2,3.2078]
[1747706985263,0.78284,2554.2,2554.1,0.41666277]
[1747706986068,2.15154,2554.3,2554.1,0.41666277]
[1747706986368,2.15152,2554.3,2554.1,0.41666277]
[1747706986570,3.99064,2554.2,2554.1,0.41666277]
[1747706986764,5.35934,2554.2,2554.1,0.41666277]
[1747706987160,0.78287,2554.1,2554.0,0.00587936]
[1747706987470,2.15157,2554.1,2554.0,0.00587936]
[1747706987671,7.15157,2554.1,2554.0,0.00587936]
[1747706987971,6.3687,2554.1,2553.1,4.5637]
[1747706988277,0.78315,2553.2,2553.1,3.2078]
[1747706988665,0.78314,2553.3,2553.1,3.2078]
[1747706988965,2.13509,2553.4,2553.1,3.2078]
[1747706989165,1.352,2553.4,2553.1,4.5624]
[1747706989372,4.5598,2553.4,2553.0,0.43333248]
[1747706989581,4.5598,2553.4,2552.9,1.36047936]
[1747706989871,0.7832,2553.1,2552.9,1.36047936]
[1747706990167,3.2078,2553.4,2552.9,1.36047936]
[1747706990370,1.352,2553.3,2552.9,1.36047936]
[1747706990765,1.352,2553.3,2553.2,0.78315]
[1747706990966,1.352,2553.3,2553.1,0.78316]
[1747706991178,3.99089,2553.4,2553.2,1.3171]
[1747706991179,3.2078,2553.4,2553.2,1.3171]
[1747706991469,3.2078,2553.4,2553.3,0.78312]
[1747706991674,40.80584049,2553.5,2553.4,0.78309]
[1747706991969,40.80584049,2553.5,2553.3,1.3672]
[1747706992276,1.2655,2553.4,2552.9,0.00587936]
[1747706992476,0.78321,2553.0,2552.9,0.00587936]
[1747706992773,3.99101,2553.0,2552.9,0.00587936]
[1747706992968,12.58901,2553.0,2552.9,0.00587936]
[1747706993174,17.58901,2553.0,2552.9,0.00587936]
[1747706994978,0.78336,2552.5,2552.4,0.43333248]
[1747706995179,3.99116,2552.5,2552.4,0.43333248]
[1747706995374,0.78336,2552.5,2552.4,0.43333248]
[1747706995677,5.31866,2552.5,2552.4,0.43333248]
[1747706996178,5.31866,2552.5,2552.2,0.58232328]
[1747706996179,0.78342,2552.3,2552.2,0.00587936]
[1747706996574,0.78341,2552.4,2552.2,0.00587936]
[1747706996780,2.11091,2552.4,2552.2,0.00587936]
[1747706997080,0.78342,2552.3,2552.2,0.00587936]
[1747706997276,2.11732,2552.3,2552.2,0.00587936]
[1747706997479,1.3339,2552.3,2552.2,0.00587936]
[1747706997680,2.11732,2552.3,2552.2,1.34957936]
[1747706998477,2.11732,2552.3,2552.2,0.00587936]
[1747707000877,1.3339,2552.3,2552.2,0.00587936]
[1747707001071,0.78342,2552.4,2552.2,1.39387936]
[1747707001279,12.59118,2552.5,2552.2,2.17731936]
[1747707001572,3.99118,2552.5,2552.3,0.78342]
[1747707001777,3.99118,2552.5,2552.3,2.17142]
[1747707001983,0.78335,2552.6,2552.3,1.388]
[1747707002178,0.78337,2552.5,2552.3,3.4943]
[1747707002480,0.78338,2552.5,2552.3,2.7109]
[1747707003078,0.78339,2552.4,2552.3,1.388]
[1747707003284,2.05139,2552.4,2552.3,1.388]
[1747707004784,0.78342,2552.3,2552.2,0.00587936]
[1747707004985,2.05142,2552.3,2552.2,0.00587936]
[1747707006685,3.2078,2552.5,2552.3,0.7834]
[1747707006885,3.2078,2552.5,2552.4,1.3095]
[1747707007088,3.2078,2552.5,2552.4,2.09289]
[1747707007885,0.78335,2552.6,2552.4,2.09289]
[1747707008087,0.78331,2552.7,2552.5,0.78336]
[1747707008283,8.601,2552.9,2552.6,1.3095]
[1747707008481,9.38426,2552.9,2552.7,0.7833]
[1747707008683,3.2078,2553.0,2552.8,1.3095]
[1747707008886,3.99102,2553.0,2552.8,1.3095]
[1747707009188,3.99102,2553.0,2552.8,2.09276]
[1747707009583,0.78324,2552.9,2552.8,1.3095]
[1747707010486,2.17054,2552.9,2552.8,1.3095]
[1747707010682,1.3873,2552.9,2552.3,3.8945]
[1747707010889,0.78336,2552.5,2552.4,1.383]
[1747707011290,0.78336,2552.6,2552.4,1.383]
[1747707011494,0.78336,2552.5,2552.4,1.383]
[1747707011694,0.78342,2552.3,2552.2,0.66557936]
[1747707012195,0.78342,2552.3,2552.2,0.00587936]
[1747707012587,9.38442,2552.3,2552.2,0.00587936]
[1747707012897,15.64932,2552.3,2552.2,0.00587936]
[1747707013495,10.64932,2552.3,2552.2,0.00587936]
[1747707014096,51.44932,2552.3,2552.2,0.00587936]
[1747707016596,0.78358,2551.8,2551.7,1.274]
[1747707016999,0.78361,2551.7,2551.4,3.2078]
[1747707017190,0.7837,2551.4,2551.3,1.3354]
[1747707017504,0.78379,2551.1,2551.0,0.43333248]
[1747707017798,1.9592,2551.5,2551.0,0.43333248]
[1747707017799,0.78378,2551.2,2551.0,0.43333248]
[1747707017998,0.78378,2551.2,2551.0,1.76873248]
[1747707018201,0.78379,2551.1,2551.0,1.76873248]
[1747707018698,0.78379,2551.1,2551.0,0.43333248]
[1747707019086,0.78379,2551.1,2550.8,4.62894936]
[1747707019289,0.78379,2551.1,2550.9,1.336]
[1747707019497,1.3335,2551.1,2550.9,1.336]
[1747707019706,0.78382,2551.0,2550.9,1.336]
[1747707019899,0.78385,2550.9,2550.8,3.84507936]
[1747707020101,1.3335,2550.9,2550.8,0.00587936]
[1747707020498,2.11735,2550.9,2550.8,1.34187936]
[1747707020903,1.3335,2550.9,2550.8,1.34187936]
[1747707021309,1.3335,2550.9,2550.8,2.12575936]
[1747707021606,2.08031,2551.1,2550.8,2.12573936]
[1747707021909,2.08031,2551.1,2550.9,0.78385]
[1747707022211,2.08031,2551.1,2551.0,1.2592]
[1747707022708,1.2965,2551.1,2551.0,1.2592]
[1747707022909,0.00587936,2551.3,2551.0,1.2592]
[1747707023108,0.78379,2551.1,2551.0,1.2592]
[1747707023607,4.51017936,2551.3,2550.8,0.00587936]
[1747707023906,0.78385,2550.9,2550.8,1.26507936]
[1747707024107,0.78385,2550.9,2550.8,0.00587936]
[1747707024707,2.14905,2550.9,2550.8,0.00587936]
[1747707025506,1.3652,2550.9,2550.8,0.78975936]
[1747707025712,1.3652,2551.2,2550.8,1.33057936]
[1747707025908,0.78384,2551.0,2550.8,1.33057936]
[1747707026409,41.58381,2551.1,2550.8,2.11445936]
[1747707026609,1.3652,2551.0,2550.8,2.11445936]
[1747707027003,40.8,2551.1,2551.0,0.78382]
[1747707027401,3.99743936,2551.3,2550.8,1.33057936]
[1747707027801,0.78376,2551.2,2550.9,0.78385]
[1747707028015,0.78376,2551.2,2551.0,1.2655]
[1747707028215,2.13382936,2551.3,2551.0,1.2655]
[1747707028711,0.78376,2551.2,2551.1,0.6893]
[1747707031121,2.13381936,2551.3,2551.1,0.6893]
[1747707031311,0.00587936,2551.3,2551.2,1.3211]
[1747707031914,0.00587936,2551.3,2551.2,2.10486]
[1747707032717,0.00587936,2551.3,2551.2,7.10486]
[1747707033015,0.00587936,2551.3,2551.2,6.73852545]
[1747707033214,0.00587936,2551.3,2551.2,7.52228545]
[1747707033416,0.00587936,2551.3,2551.2,2.52228545]
[1747707034514,0.00587936,2551.3,2551.2,1.73852545]
[1747707034920,0.00587936,2551.3,2551.2,2.52228545]
[1747707035721,0.78960936,2551.3,2551.2,1.73852545]
[1747707036321,0.78960936,2551.3,2551.2,0.41742545]
[1747707037125,0.78376,2551.2,2551.1,0.6893]
[1747707037420,0.78379,2551.1,2551.0,4.6001]
[1747707037622,0.78385,2550.9,2550.8,0.00587936]
[1747707038723,2.12955,2550.9,2550.8,0.00587936]
[1747707040616,7.12955,2550.9,2550.8,0.00587936]
[1747707040815,7.12955,2550.9,2549.8,2.79055139]
[1747707040816,1.95972,2550.8,2549.9,1.2614]
[1747707041016,3.2078,2550.5,2549.9,1.2614]
[1747707041213,0.78413,2550.1,2549.9,1.2614]
[1747707041618,3.99189,2550.2,2549.9,1.2614]
[1747707041819,44.0078,2550.5,2549.9,1.2614]
[1747707042013,0.78401,2550.4,2550.2,0.78407]
[1747707042220,3.99179,2550.5,2550.3,1.2614]
[1747707042419,0.78401,2550.4,2550.3,1.2614]
[1747707042619,3.99179,2550.5,2550.3,1.2614]
[1747707042832,3.2078,2551.1,2550.3,7.5583]
[1747707043018,3.2078,2551.1,2551.0,0.78382]
[1747707043325,0.00587936,2551.3,2550.7,8.476]
[1747707043519,0.78961936,2551.3,2550.9,0.78383]
[1747707043718,0.78961936,2551.3,2551.0,0.6462]
[1747707043920,0.78961936,2551.3,2551.1,1.2999]
[1747707044120,0.78376,2551.2,2551.1,1.2999]
[1747707044321,2.17182936,2551.3,2551.1,1.2999]
[1747707044526,0.00587936,2551.3,2551.1,1.2999]
[1747707044726,0.00587936,2551.3,2551.2,0.78376]
[1747707045227,0.00587936,2551.3,2551.2,5.78376]
[1747707046121,0.00587936,2551.3,2551.2,6.20401914]
[1747707046722,13.066,2552.0,2551.7,0.7836]
[1747707046927,4.59,2552.0,2551.8,1.3767]
[1747707047131,3.2078,2552.0,2551.9,0.78355]
[1747707047336,3.2078,2552.0,2551.9,0.6439]
[1747707047818,0.00587936,2552.2,2552.1,0.78348]
[1747707048231,0.00587936,2552.2,2552.1,5.78348]
[1747707048415,0.00587936,2552.2,2552.1,8.99128]
[1747707049030,0.00587936,2552.2,2552.0,4.90019]
[1747707049224,0.00587936,2552.2,2552.1,8.89606885]
[1747707049534,0.00587936,2552.2,2552.1,9.67955885]
[1747707049734,0.00587936,2552.2,2552.1,0.42006885]
[1747707049926,0.00587936,2552.2,2552.1,1.20355885]
[1747707050727,0.00587936,2552.2,2552.1,0.42006885]
[1747707051325,0.00587936,2552.2,2552.0,2.1602]
[1747707052034,0.00587936,2552.2,2552.0,1.3767]
[1747707052422,0.00587936,2552.2,2552.1,0.78349]
[1747707053616,0.00587936,2552.2,2552.0,1.3767]
[1747707053826,0.00587936,2552.2,2552.0,2.16021]
[1747707054022,0.00587936,2552.2,2552.0,1.3767]
[1747707054219,0.00587936,2552.2,2552.0,2.16021]
[1747707054428,0.00587936,2552.2,2552.1,0.78349]
[1747707055128,3.2078,2552.7,2552.6,0.78333]
[1747707055338,3.2078,2552.7,2552.5,0.78335]
[1747707055627,3.2078,2552.7,2552.6,1.9271]
[1747707055832,0.78313,2553.3,2552.9,0.78324]
[1747707056128,3.2078,2553.4,2553.0,1.2717]
[1747707056326,3.21367936,2553.4,2553.0,1.2717]
[1747707056528,4.52437936,2553.4,2553.1,0.78317]
[1747707056828,4.52437936,2553.4,2553.2,1.2717]
[1747707057431,4.52437936,2553.4,2553.2,2.05485]
[1747707057634,3.21367936,2553.4,2553.2,1.2717]
[1747707057835,3.21367936,2553.4,2553.3,1.2717]
[1747707058029,3.21367936,2553.4,2553.3,2.05482]
[1747707058325,3.21367936,2553.4,2553.3,9.79482]
[1747707058326,0.00587936,2553.4,2553.3,9.79482]
[1747707058531,0.78297,2553.8,2553.3,7.8727]
[1747707058831,2.26318488,2554.0,2553.7,0.78298]
[1747707059139,2.26318488,2554.0,2553.8,1.3798]
[1747707059430,2.26318488,2554.0,2553.9,0.78293]
[1747707059632,1.294,2554.0,2553.8,2.16274]
[1747707060027,3.2078,2554.1,2553.8,2.16274]
[1747707060227,3.2078,2554.1,2553.8,4.1198]
[1747707060434,1.294,2554.0,2553.8,4.90275]
[1747707060629,1.294,2554.0,2553.8,4.1198]
[1747707060849,3.2078,2554.1,2554.0,0.7829]
[1747707061132,0.00584049,2554.2,2554.1,0.78287]
[1747707061328,0.00584049,2554.2,2554.0,2.74]
[1747707061329,3.21364049,2554.2,2554.0,2.74]
[1747707061521,2.08607,2554.1,2554.0,2.74]
[1747707061724,0.78306,2553.5,2553.3,1.2953]
[1747707062226,3.2078,2553.6,2553.3,1.2953]
[1747707062432,2.08621,2553.7,2553.3,1.2953]
[1747707062633,1.3032,2553.7,2553.4,0.78307]
[1747707062933,2.0862,2553.7,2553.5,1.2953]
[1747707063133,1.3032,2553.7,2553.5,1.2953]
[1747707063433,1.3032,2553.7,2553.5,2.07834]
[1747707063636,1.3032,2553.7,2553.5,1.2953]
[1747707064335,0.7831,2553.4,2553.1,0.627]
[1747707064633,0.78307,2553.5,2553.2,1.3234]
[1747707064931,1.2956,2553.4,2553.2,2.10655]
[1747707065136,1.2956,2553.4,2553.3,1.3234]
[1747707065633,2.07869,2553.4,2553.3,1.3234]
[1747707065930,3.2078,2553.8,2553.1,0.627]
[1747707066136,0.78312,2553.3,2553.2,1.3234]
[1747707066337,0.78315,2553.2,2553.1,0.627]
[1747707066635,4.5034,2553.2,2553.0,0.00587936]
[1747707066838,0.6564,2553.7,2553.1,1.3234]
[1747707066839,4.64722,2553.7,2553.1,1.3234]
[1747707067028,1.2956,2553.6,2553.1,1.3234]
[1747707067233,3.2078,2553.7,2553.6,0.78303]
[1747707068327,0.78291,2554.0,2553.7,0.78297]
[1747707068530,2.16592,2554.0,2553.6,9.7291]
[1747707068733,0.78294,2553.9,2553.7,1.3031]
[1747707068936,0.78296,2553.8,2553.7,1.3031]
[1747707069441,2.16598,2553.8,2553.4,10.53208]
[1747707069744,2.16598,2553.8,2553.5,1.3031]
[1747707070037,3.2078,2554.1,2553.7,3.2078]
[1747707070243,3.21364049,2554.2,2553.9,0.78291]
[1747707070436,3.99648049,2554.2,2554.0,1.3211]
[1747707070636,1.2603,2554.1,2554.0,1.3211]
[1747707071135,1.2603,2554.1,2553.7,3.2078]
[1747707071334,1.2603,2554.1,2553.8,1.3211]
[1747707071534,0.00584049,2554.2,2554.1,0.78287]
[1747707074044,0.00584049,2554.2,2554.1,5.78287]
[1747707074732,0.78265,2554.9,2554.5,0.78273]
[1747707074935,3.2078,2555.0,2554.6,1.9265]
[1747707075137,1.376,2554.8,2554.7,0.78266]
[1747707075337,1.376,2554.8,2554.7,2.07486]
[1747707075532,0.78255,2555.2,2554.7,1.2922]
[1747707075747,0.01915966,2555.3,2554.8,1.2922]
[1747707076041,0.01915966,2555.3,2555.2,0.78254]
[1747707077139,0.01915966,2555.3,2555.2,1.18175847]
[1747707077343,0.01915966,2555.3,2555.2,4.38955847]
[1747707077734,0.01915966,2555.3,2555.2,9.38955847]
[1747707077936,3.2078,2556.1,2555.9,0.78231]
[1747707078231,10.37813,2556.8,2555.3,1.95627]
[1747707078232,2.13385,2556.2,2555.8,0.78233]
[1747707078435,1.3516,2556.2,2555.9,1.256]
[1747707078640,3.2078,2556.1,2555.4,0.41586425]
[1747707078843,3.2078,2556.1,2555.4,1.67186425]
[1747707078844,0.78244,2555.5,2555.4,1.67186425]
[1747707079033,0.78239,2555.7,2555.4,1.67186425]
[1747707079238,1.3516,2555.7,2555.4,2.45433425]
[1747707079440,2.13398,2555.7,2555.4,1.67186425]
[1747707079641,3.99024,2555.5,2555.4,0.41586425]
[1747707080242,3.2078,2555.5,2555.4,0.41586425]
[1747707080450,3.2078,2555.5,2555.3,0.78249]
[1747707080654,3.2078,2555.5,2555.4,1.3718]
[1747707080848,1.3516,2555.7,2555.4,2.15426]
[1747707081037,1.3516,2555.7,2555.1,0.6508]
[1747707081343,0.7825,2555.4,2555.0,9.2036]
[1747707081548,3.2078,2555.5,2554.8,1.3718]
[1747707081549,3.2078,2555.2,2554.8,1.3718]
[1747707081746,1.3018,2555.1,2554.7,0.00587936]
[1747707081944,0.78266,2554.8,2554.7,0.00587936]
[1747707082140,0.78263,2554.9,2554.7,0.00587936]
[1747707082340,1.3018,2554.8,2554.7,0.00587936]
[1747707083243,2.08446,2554.8,2554.7,0.00587936]
[1747707085150,1.3018,2554.8,2554.7,0.00587936]
[1747707086152,2.08446,2554.8,2554.7,0.00587936]
[1747707087846,2.75226,2554.8,2554.7,0.00587936]
[1747707088047,1.9696,2554.8,2554.7,0.00587936]
[1747707088352,2.75226,2554.8,2554.7,0.00587936]
[1747707088651,1.3018,2554.8,2554.7,0.00587936]
[1747707088847,2.08446,2554.8,2554.7,0.00587936]
[1747707089556,1.3018,2554.8,2554.7,0.00587936]
[1747707089954,2.08446,2554.8,2554.7,0.00587936]
[1747707092253,1.3018,2554.8,2554.7,0.00587936]
[1747707093354,1.3018,2554.8,2554.7,2.07806936]
[1747707093655,1.3018,2554.8,2554.7,1.29537936]
[1747707094048,2.08446,2554.8,2554.7,0.00587936]
[1747707094755,3.2078,2554.9,2554.7,0.00587936]
[1747707094950,3.2078,2554.9,2554.7,0.78854936]
[1747707095151,3.2078,2554.9,2554.8,1.3802]
[1747707095352,4.4983,2554.9,2554.8,1.3802]
[1747707096348,1.2905,2554.9,2554.8,2.16286]
[1747707096944,2.07313,2554.9,2554.8,1.3802]
[1747707097150,0.78266,2554.8,2554.7,0.00587936]
[1747707097350,1.2905,2554.8,2554.7,0.00587936]
[1747707097549,1.2905,2554.8,2554.7,1.38607936]
[1747707097955,0.78261,2555.0,2554.7,2.16874936]
[1747707098149,2.11221,2555.0,2554.8,1.273]
[1747707098751,1.3296,2555.0,2554.9,0.78263]
[1747707099055,1.3296,2555.0,2554.8,1.273]
[1747707099259,1.3296,2555.0,2554.9,0.78263]
[1747707099661,2.11221,2555.0,2554.8,1.9369]
[1747707100061,2.11221,2555.0,2554.8,1.44655]
[1747707100259,0.78263,2554.9,2554.8,0.6639]
[1747707100460,1.3296,2554.9,2554.7,0.00587936]
[1747707100962,0.78261,2555.0,2554.7,0.78855936]
[1747707101163,2.15312,2555.0,2554.7,0.78855936]
[1747707101669,1.3705,2555.0,2554.8,0.78265]
[1747707101964,2.1531,2555.0,2554.8,2.13255]
[1747707102161,1.3705,2555.0,2554.8,2.13255]
[1747707102368,2.15311,2555.0,2554.8,1.3499]
[1747707102666,2.15311,2555.0,2554.8,2.13256]
[1747707103168,1.3705,2555.0,2554.8,1.3499]
[1747707103373,1.3705,2555.0,2554.8,2.13254]
[1747707103567,2.15311,2555.0,2554.8,2.13254]
[1747707103769,0.78263,2554.9,2554.8,1.3499]
[1747707104068,2.09573,2554.9,2554.8,1.3499]
[1747707104272,5.30353,2554.9,2554.8,1.3499]
[1747707104475,0.78266,2554.8,2554.7,0.00587936]
[1747707104773,3.2078,2554.9,2554.7,0.00587936]
[1747707104971,0.78242,2555.6,2555.3,0.78251]
[1747707105271,4.5209,2555.8,2555.3,0.78249]
[1747707105470,4.5209,2555.8,2554.9,12.5905]
[1747707105672,0.7826,2555.0,2554.9,0.6757]
[1747707105866,5.16391,2555.6,2555.0,0.41229445]
[1747707106064,0.78254,2555.3,2555.0,1.19488445]
[1747707106271,3.2078,2555.9,2555.2,3.2078]
[1747707106476,4.5209,2555.9,2555.3,1.314]
[1747707106773,3.2078,2555.9,2555.4,9.4012]
[1747707106972,3.2078,2555.9,2555.6,0.78239]
[1747707107275,3.2078,2555.9,2555.7,1.3545]
[1747707107479,5.34083,2555.9,2555.7,1.3545]
[1747707107873,2.13303,2555.9,2555.7,1.3545]
[1747707108577,1.3507,2555.9,2555.7,1.3545]
[1747707108776,1.3507,2555.9,2555.8,0.78235]
[1747707109079,1.3507,2555.9,2555.7,2.13686]
[1747707109675,0.78224,2556.2,2555.8,2.13685]
[1747707109976,0.96918488,2556.4,2555.8,2.13685]
[1747707109977,1.3679,2556.3,2555.8,1.3545]
[1747707110178,0.78226,2556.1,2555.8,4.5623]
[1747707110384,1.3679,2556.3,2555.8,5.34465]
[1747707110385,0.78225,2556.2,2555.8,5.34465]
[1747707110582,2.15018,2556.1,2555.8,1.3545]
[1747707110877,2.15018,2556.1,2555.8,2.13684]
[1747707110878,1.3679,2556.1,2555.8,2.13684]
[1747707111079,1.3679,2556.1,2555.9,0.78231]
[1747707111281,1.3679,2556.1,2556.0,1.384]
[1747707111575,1.3679,2556.1,2556.0,2.16629]
[1747707111784,4.4966,2556.5,2556.0,1.384]
[1747707112080,1.3679,2556.4,2556.1,0.78226]
[1747707112275,1.3679,2556.4,2556.2,1.384]
[1747707112475,2.15008,2556.4,2556.2,1.384]
[1747707112779,3.2078,2556.5,2556.3,0.78219]
[1747707112976,3.2078,2556.5,2556.2,1.384]
[1747707113177,1.3783,2556.4,2556.2,2.16621]
[1747707113370,1.3783,2556.4,2556.3,1.3099]
[1747707114083,3.2078,2556.5,2556.3,2.09209]
[1747707114281,1.3783,2556.7,2556.3,1.3099]
[1747707114486,0.78217,2556.4,2556.3,1.3099]
[1747707114680,1.3783,2556.5,2556.1,3.2078]
[1747707114986,1.3783,2556.3,2556.0,0.63567936]
[1747707115180,1.3783,2556.3,2556.1,1.3099]
[1747707115181,0.78226,2556.2,2556.1,1.3099]
[1747707115485,0.78223,2556.2,2556.1,1.3099]
[1747707115675,3.2078,2556.7,2556.1,14.9869]
[1747707115881,0.78215,2556.5,2556.2,0.78222]
[1747707116082,5.16283,2557.0,2556.1,9.9869]
[1747707116083,2.04011,2556.6,2556.4,0.78217]
[1747707116279,3.2078,2557.0,2556.5,0.78214]
[1747707116480,0.78208,2556.7,2556.6,1.3259]
[1747707117288,3.2078,2557.0,2556.6,1.3259]
[1747707117490,1.258,2556.8,2556.4,1.47636]
[1747707117688,1.258,2556.8,2556.4,2.0201]
[1747707117689,0.78214,2556.5,2556.4,2.0201]
[1747707117888,0.78212,2556.6,2556.4,2.0201]
[1747707118089,1.258,2556.5,2556.4,2.0201]
[1747707118690,1.258,2556.5,2556.4,2.80227]
[1747707119086,2.04014,2556.5,2556.4,2.0201]
[1747707119388,0.78218,2556.4,2556.0,9.31167936]